bitfinex-derivatives/quotes_ETHF0:USTF0_20260125
["timestamp","ask_amount","ask_price","bid_price","bid_amount"]
[1769319027507,4.03302828,2949.8,2948.8,0.78207377]
[1769319027708,4.03302828,2949.7,2948.8,0.78207377]
[1769319027909,0.13815952,2949.9,2948.8,0.78207377]
[1769319028109,4.03302828,2949.8,2948.8,0.78207377]
[1769319028410,4.03302828,2949.7,2948.8,0.78207377]
[1769319028609,0.13815952,2949.9,2948.8,0.78207377]
[1769319028911,4.03285728,2949.8,2948.8,0.78207377]
[1769319029209,4.03285728,2949.7,2948.8,0.78207377]
[1769319029414,0.13815952,2949.9,2948.8,0.78207377]
[1769319029611,4.03271079,2949.8,2948.8,0.78207377]
[1769319029810,4.03271079,2949.7,2948.8,0.78207377]
[1769319030109,0.13815952,2949.9,2948.8,0.78207377]
[1769319030309,4.03268933,2949.8,2948.8,0.78207377]
[1769319030510,4.03268933,2949.7,2948.8,0.78207377]
[1769319030707,0.13815952,2949.9,2948.6,0.78207377]
[1769319030906,0.13815952,2949.7,2948.6,0.78207377]
[1769319033817,0.78490767,2950.0,2948.8,0.78207377]
[1769319034116,4.03307239,2949.9,2948.8,0.78207377]
[1769319034315,4.03307239,2949.8,2948.8,0.78207377]
[1769319034517,4.03307239,2949.7,2948.8,0.78207377]
[1769319034720,0.78490767,2950.0,2948.8,0.78207377]
[1769319035015,4.03319221,2949.9,2948.8,0.78207377]
[1769319035216,4.03319221,2949.8,2948.8,0.78207377]
[1769319035412,4.03319221,2949.7,2948.8,0.78207377]
[1769319035614,0.78490767,2950.0,2948.8,0.78207377]
[1769319035811,4.03339449,2949.9,2948.8,0.78207377]
[1769319036007,4.03339449,2949.8,2948.8,0.78207377]
[1769319036210,4.03339449,2949.7,2948.8,0.78207377]
[1769319036416,0.13907863,2949.9,2948.8,0.78207377]
[1769319036616,4.03372032,2949.8,2948.8,0.78207377]
[1769319036915,4.03372032,2949.7,2948.8,0.78207377]
[1769319037118,0.13907863,2949.9,2948.8,0.78207377]
[1769319037311,4.03404154,2949.8,2948.8,0.78207377]
[1769319037512,4.03404154,2949.7,2948.8,0.78207377]
[1769319037713,0.13907863,2949.9,2948.8,0.78207377]
[1769319037920,4.03404154,2949.8,2948.8,0.78207377]
[1769319038118,4.03404154,2949.7,2948.8,0.78207377]
[1769319038319,0.13907863,2949.9,2948.6,0.78207377]
[1769319038518,4.03448136,2949.8,2948.6,0.78207377]
[1769319038720,4.03448136,2949.7,2948.6,0.78207377]
[1769319038917,0.13907863,2949.9,2948.6,0.78207377]
[1769319039118,4.03450814,2949.8,2948.6,0.78207377]
[1769319039317,4.03450814,2949.7,2948.6,0.78207377]
[1769319039518,0.13907863,2949.9,2948.6,0.78207377]
[1769319039720,4.03499409,2949.8,2948.6,0.78207377]
[1769319039920,4.03499409,2949.7,2948.6,0.78207377]
[1769319040114,0.13907863,2949.9,2948.6,0.78207377]
[1769319040310,4.17466116,2949.8,2948.6,0.78207377]
[1769319040517,4.03558253,2949.7,2948.6,0.78207377]
[1769319040711,4.03558253,2949.6,2948.6,0.78207377]
[1769319040916,0.13907863,2949.8,2948.6,0.78207377]
[1769319041224,4.03558303,2949.7,2948.6,0.78207377]
[1769319041412,4.03558303,2949.6,2948.6,0.78207377]
[1769319041617,0.13907863,2949.8,2948.6,0.78207377]
[1769319041812,4.03631943,2949.7,2948.6,0.78207377]
[1769319042018,4.03631943,2949.6,2948.6,0.78207377]
[1769319042219,0.13907863,2949.8,2948.6,0.78207377]
[1769319042517,4.03736545,2949.7,2948.6,0.78207377]
[1769319042717,4.03736545,2949.6,2948.6,0.78207377]
[1769319042923,0.13907863,2949.8,2948.6,0.78207377]
[1769319043123,4.03736565,2949.7,2948.6,0.78207377]
[1769319043324,4.03736565,2949.6,2948.6,0.78207377]
[1769319043524,0.13907863,2949.8,2948.6,0.78207377]
[1769319043725,4.03781188,2949.7,2948.6,0.78207377]
[1769319043926,4.03781188,2949.6,2948.6,0.78207377]
[1769319044225,0.13907863,2949.8,2948.6,0.78207377]
[1769319044427,4.03840618,2949.7,2948.6,0.78207377]
[1769319044622,4.03840618,2949.6,2948.6,0.78207377]
[1769319044831,0.13907863,2949.8,2948.6,0.78207377]
[1769319045133,4.03840754,2949.7,2948.6,0.78207377]
[1769319045431,4.03840754,2949.6,2948.6,0.78207377]
[1769319045625,0.13907863,2949.8,2948.6,0.78207377]
[1769319045826,4.03943443,2949.7,2948.6,0.78207377]
[1769319046029,4.03943443,2949.6,2948.6,0.78207377]
[1769319046239,0.13907863,2949.8,2948.6,0.78207377]
[1769319046438,4.03944652,2949.7,2948.6,0.78207377]
[1769319046640,4.03944652,2949.6,2948.6,0.78207377]
[1769319046843,0.13907863,2949.8,2948.6,0.78207377]
[1769319047032,4.03940292,2949.7,2948.6,0.78207377]
[1769319047234,4.03940292,2949.6,2948.6,0.78207377]
[1769319047434,0.13907863,2949.8,2948.6,0.78207377]
[1769319047642,4.03947252,2949.7,2948.6,0.78207377]
[1769319047834,4.03947252,2949.6,2948.6,0.78207377]
[1769319048034,0.13907863,2949.8,2948.6,0.78207377]
[1769319048234,4.03947311,2949.7,2948.6,0.78207377]
[1769319048440,4.03947311,2949.6,2948.6,0.78207377]
[1769319048738,0.13907863,2949.8,2948.6,0.78207377]
[1769319048939,4.03953664,2949.7,2948.6,0.78207377]
[1769319049136,4.17861527,2949.6,2948.6,0.78207377]
[1769319049337,0.13907863,2949.6,2948.6,0.78207377]
[1769319049640,0.13907863,2949.6,2948.4,0.78207377]
[1769319055941,4.17872697,2949.5,2948.4,0.78207377]
[1769319056147,0.13907863,2949.5,2948.4,0.78207377]
[1769319057144,0.13907863,2949.5,2948.2,3.09392706]
[1769319057549,0.13907863,2949.5,2948.2,2.92407706]
[1769319057742,0.13907863,2949.5,2948.2,2.77407377]
[1769319059750,0.9211524,2949.4,2948.2,1.992]
[1769319060347,0.13907863,2949.4,2948.2,1.992]
[1769319061255,0.13907863,2949.4,2948.1,0.78207377]
[1769319061552,0.13907863,2949.4,2948.1,2.77307377]
[1769319062550,0.13907863,2949.4,2948.1,2.92307706]
[1769319064343,0.78207377,2949.8,2948.4,0.14318699]
[1769319064549,4.0385625,2949.7,2948.5,0.78207377]
[1769319064750,4.0385625,2949.6,2948.5,0.78207377]
[1769319064944,4.0385625,2949.5,2948.5,0.78207377]
[1769319065149,0.14923064,2949.8,2948.5,0.78207377]
[1769319065349,4.03844486,2949.7,2948.5,0.78207377]
[1769319065548,4.03844486,2949.6,2948.5,0.78207377]
[1769319065750,4.03844486,2949.5,2948.5,0.78207377]
[1769319065946,0.14923064,2949.8,2948.5,0.78207377]
[1769319066142,4.03844437,2949.7,2948.5,0.78207377]
[1769319066349,4.03844437,2949.6,2948.5,0.78207377]
[1769319066653,4.03844437,2949.5,2948.5,0.78207377]
[1769319066852,0.14923064,2949.8,2948.5,0.78207377]
[1769319067050,4.03842629,2949.7,2948.5,0.78207377]
[1769319067251,4.03842629,2949.6,2948.5,0.78207377]
[1769319067450,4.03842629,2949.5,2948.5,0.78207377]
[1769319067650,0.14923064,2949.8,2948.5,0.78207377]
[1769319067850,4.03842828,2949.7,2948.5,0.78207377]
[1769319068052,4.03842828,2949.6,2948.5,0.78207377]
[1769319068250,4.03842828,2949.5,2948.5,0.78207377]
[1769319068451,0.14923064,2949.8,2948.5,0.78207377]
[1769319068751,4.03844283,2949.7,2948.5,0.78207377]
[1769319068951,4.03844283,2949.6,2948.5,0.78207377]
[1769319069258,0.14923064,2949.8,2948.7,0.78207377]
[1769319069450,4.03831091,2949.7,2948.7,0.78207377]
[1769319069749,4.03831091,2949.6,2948.7,0.78207377]
[1769319069950,4.03831091,2949.5,2948.7,0.78207377]
[1769319070148,0.14923064,2949.8,2948.7,0.78207377]
[1769319070349,4.03838696,2949.7,2948.7,0.78207377]
[1769319070648,4.03838696,2949.6,2948.7,0.78207377]
[1769319070847,4.03838696,2949.5,2948.7,0.78207377]
[1769319071048,4.03838696,2949.5,2948.5,0.14318699]
[1769319071049,0.93130441,2949.8,2948.5,0.92526076]
[1769319071346,0.14923064,2949.6,2948.3,0.78207377]
[1769319071653,4.03840663,2949.5,2948.3,0.78207377]
[1769319072856,4.03840663,2949.5,2948.2,0.31303699]
[1769319075757,0.14200248,2949.4,2948.1,1.991]
[1769319075959,0.14200248,2949.2,2947.7,0.31224865]
[1769319077557,0.14200248,2949.6,2948.0,0.14236865]
[1769319077750,4.03746,2949.5,2948.0,0.14236865]
[1769319077954,4.03746,2949.4,2948.0,0.14236865]
[1769319078152,4.03746,2949.3,2948.0,0.14236865]
[1769319078459,2.13300248,2949.6,2948.0,0.14236865]
[1769319078758,4.03702562,2949.5,2948.0,0.14236865]
[1769319078961,4.03702562,2949.4,2948.0,0.14236865]
[1769319079158,4.03702562,2949.3,2948.0,0.14236865]
[1769319079360,2.13300248,2949.6,2948.0,0.14236865]
[1769319079661,4.036682,2949.5,2948.0,0.14236865]
[1769319079860,4.036682,2949.4,2948.0,0.14236865]
[1769319080054,4.036682,2949.3,2948.0,0.14236865]
[1769319080251,0.14200248,2949.6,2948.0,0.14236865]
[1769319080557,4.03641651,2949.5,2948.0,0.14236865]
[1769319080749,0.14200248,2949.6,2948.0,0.14236865]
[1769319080750,4.03641651,2949.4,2948.0,0.14236865]
[1769319080960,0.14200248,2949.6,2948.0,0.14236865]
[1769319081154,4.03629711,2949.5,2948.0,0.14236865]
[1769319081359,4.03629711,2949.4,2948.0,0.14236865]
[1769319081655,0.14200248,2949.6,2948.0,0.14236865]
[1769319081860,4.17817992,2949.5,2948.0,0.14236865]
[1769319082160,4.03617744,2949.4,2948.0,0.14236865]
[1769319082362,0.14200248,2949.5,2948.0,0.14236865]
[1769319086063,0.14200248,2949.5,2948.1,0.14236865]
[1769319098075,4.03708956,2949.4,2948.1,0.14236865]
[1769319098372,0.14200248,2949.5,2948.1,0.14236865]
[1769319098573,4.03708956,2949.4,2948.1,0.14236865]
[1769319098767,0.14200248,2949.5,2948.1,0.14236865]
[1769319098966,4.03708981,2949.4,2948.1,0.14236865]
[1769319099163,0.14200248,2949.5,2948.1,0.14236865]
[1769319099374,4.03716129,2949.4,2948.1,0.14236865]
[1769319099576,0.14200248,2949.5,2948.1,0.14236865]
[1769319099774,4.0371608,2949.4,2948.1,0.14236865]
[1769319099975,0.14200248,2949.5,2948.1,0.14236865]
[1769319100174,4.0371608,2949.4,2948.1,0.14236865]
[1769319100376,0.14200248,2949.5,2948.1,0.14236865]
[1769319100673,4.0373123,2949.4,2948.1,0.14236865]
[1769319100875,0.14200248,2949.5,2948.1,0.14236865]
[1769319101067,4.03731173,2949.4,2948.1,0.14236865]
[1769319101267,0.14200248,2949.5,2948.1,0.14236865]
[1769319101468,4.0374752,2949.4,2948.1,0.14236865]
[1769319101668,0.14200248,2949.5,2948.1,0.14236865]
[1769319101873,4.0374752,2949.4,2948.1,0.14236865]
[1769319102069,0.14200248,2949.5,2948.1,0.14236865]
[1769319102274,4.0375479,2949.4,2948.1,0.14236865]
[1769319102470,0.14200248,2949.5,2948.1,0.14236865]
[1769319102671,4.0375479,2949.4,2948.1,0.14236865]
[1769319102871,0.14200248,2949.5,2948.1,0.14236865]
[1769319103068,4.0375479,2949.4,2948.1,0.14236865]
[1769319103272,0.14200248,2949.5,2948.1,0.14236865]
[1769319103468,4.03769297,2949.4,2948.1,0.14236865]
[1769319103673,0.14200248,2949.5,2948.1,0.14236865]
[1769319103875,4.03769297,2949.4,2948.1,0.14236865]
[1769319104075,0.14200248,2949.5,2948.1,0.14236865]
[1769319104275,4.03785224,2949.4,2948.1,0.14236865]
[1769319104476,0.14200248,2949.5,2948.1,0.14236865]
[1769319104675,4.03785224,2949.4,2948.1,0.14236865]
[1769319104975,0.14200248,2949.5,2948.1,0.14236865]
[1769319105175,4.03785237,2949.4,2948.1,0.14236865]
[1769319105381,0.14200248,2949.5,2948.1,0.14236865]
[1769319105582,4.03802959,2949.4,2948.1,0.14236865]
[1769319105773,0.14200248,2949.5,2948.1,0.14236865]
[1769319105974,4.03802959,2949.4,2948.1,0.14236865]
[1769319106280,0.14200248,2949.5,2948.1,0.14236865]
[1769319106474,4.03821624,2949.4,2948.1,0.14236865]
[1769319106669,0.14200248,2949.5,2948.1,0.14236865]
[1769319106874,4.18188894,2949.4,2948.1,0.14236865]
[1769319107074,0.1436727,2949.4,2948.0,0.16986]
[1769319110787,4.18314768,2949.3,2948.0,0.16986]
[1769319111086,0.1436727,2949.2,2948.0,0.16986]
[1769319121994,0.1436727,2949.2,2947.8,1.991]
[1769319122196,0.1436727,2949.0,2947.8,1.991]
[1769319122884,4.03673869,2948.9,2947.4,0.00340413]
[1769319123191,0.13948537,2948.7,2947.4,0.00340413]
[1769319123492,0.13948537,2948.5,2947.4,0.00340413]
[1769319151324,4.05571505,2948.4,2947.4,0.00340413]
[1769319151517,0.15072626,2948.4,2947.4,0.00340413]
[1769319152324,4.06077962,2948.3,2947.4,0.00340413]
[1769319152527,0.15072626,2948.4,2947.4,0.00340413]
[1769319152718,4.06078009,2948.3,2947.4,0.00340413]
[1769319152917,0.15072626,2948.4,2947.4,0.00340413]
[1769319153117,4.06078009,2948.3,2947.4,0.00340413]
[1769319153318,0.15072626,2948.4,2947.4,0.00340413]
[1769319153513,4.06084692,2948.3,2947.4,0.00340413]
[1769319153718,0.15072626,2948.4,2947.4,0.00340413]
[1769319153927,4.06084597,2948.3,2947.4,0.00340413]
[1769319154221,0.15072626,2948.4,2947.4,0.00340413]
[1769319154412,4.06085351,2948.3,2947.4,0.00340413]
[1769319154612,0.15072626,2948.4,2947.4,0.00340413]
[1769319154812,4.06085304,2948.3,2947.4,0.00340413]
[1769319155012,0.15072626,2948.4,2947.4,0.00340413]
[1769319155213,4.06085304,2948.3,2947.4,0.00340413]
[1769319155418,0.15072626,2948.4,2947.4,0.00340413]
[1769319155717,4.06086213,2948.3,2947.4,0.00340413]
[1769319155914,0.15072626,2948.4,2947.4,0.00340413]
[1769319156114,4.06086213,2948.3,2947.4,0.00340413]
[1769319156418,0.15072626,2948.4,2947.4,0.00340413]
[1769319156726,4.06086921,2948.3,2947.4,0.00340413]
[1769319156921,0.15072626,2948.4,2947.4,0.00340413]
[1769319157123,4.06086898,2948.3,2947.4,0.00340413]
[1769319157323,0.15072626,2948.4,2947.4,0.00340413]
[1769319157527,4.06087717,2948.3,2947.4,0.00340413]
[1769319157823,0.15072626,2948.4,2947.4,0.00340413]
[1769319158023,4.06087717,2948.3,2947.4,0.00340413]
[1769319158222,0.15072626,2948.4,2947.4,0.00340413]
[1769319158416,4.06087758,2948.3,2947.4,0.00340413]
[1769319158616,0.15072626,2948.4,2947.4,0.00340413]
[1769319158826,4.06087056,2948.3,2947.4,0.00340413]
[1769319159026,0.15072626,2948.4,2947.4,0.00340413]
[1769319159231,4.06086932,2948.3,2947.4,0.00340413]
[1769319159522,0.15072626,2948.4,2947.4,0.00340413]
[1769319159723,4.06086338,2948.3,2947.4,0.00340413]
[1769319159920,0.15072626,2948.4,2947.4,0.00340413]
[1769319160121,4.05966735,2948.3,2947.4,0.00340413]
[1769319160318,0.15072626,2948.4,2947.4,0.00340413]
[1769319160519,4.05963559,2948.3,2947.4,0.00340413]
[1769319160720,0.15072626,2948.4,2947.4,0.00340413]
[1769319160923,4.05960646,2948.3,2947.4,0.00340413]
[1769319161223,0.15072626,2948.4,2947.4,0.00340413]
[1769319161425,4.06016775,2948.3,2947.4,0.00340413]
[1769319161621,0.15072626,2948.4,2947.4,0.00340413]
[1769319161824,4.06022172,2948.3,2947.4,0.00340413]
[1769319162025,0.15072626,2948.4,2947.4,0.00340413]
[1769319162228,4.06010693,2948.3,2947.4,0.00340413]
[1769319162525,0.15072626,2948.4,2947.4,0.00340413]
[1769319162728,4.06013794,2948.3,2947.4,0.00340413]
[1769319162929,0.15072626,2948.4,2947.4,0.00340413]
[1769319163124,4.06013852,2948.3,2947.4,0.00340413]
[1769319163325,0.15072626,2948.4,2947.4,0.00340413]
[1769319163525,4.20277232,2948.3,2947.4,0.00340413]
[1769319163724,0.14263254,2948.3,2947.4,0.00340413]
[1769319173650,4.06049741,2948.2,2947.4,0.00340413]
[1769319173847,0.14263254,2948.2,2947.4,0.00340413]
[1769319178053,0.14263254,2948.2,2947.1,0.78266918]
[1769319179046,0.14263254,2948.2,2947.1,0.78508126]
[1769319180149,0.14263254,2948.2,2947.1,0.00241208]
[1769319180447,0.92530172,2948.2,2947.1,0.00241208]
[1769319180647,0.14263254,2947.9,2947.1,0.00241208]
[1769319180946,0.14523409,2947.9,2947.1,0.00241208]
[1769319181454,0.14523409,2947.9,2946.7,0.78266918]
[1769319182448,0.14523409,2947.9,2946.7,0.78515215]
[1769319182647,0.78266918,2947.2,2946.3,0.05905757]
[1769319182846,0.9206159,2947.2,2946.0,0.78266918]
[1769319183350,0.13794672,2947.1,2945.8,1.09634156]
[1769319183551,1.992,2947.0,2945.8,1.09634156]
[1769319183753,1.992,2947.0,2945.8,1.09932173]
[1769319184252,2.77466918,2947.0,2945.8,0.31665255]
[1769319184444,1.992,2947.0,2946.0,0.78266918]
[1769319189254,2.12994672,2947.0,2946.0,0.78266918]
[1769319190850,1.992,2947.0,2946.0,0.78266918]
[1769319191056,1.992,2947.0,2946.2,0.78266918]
[1769319194160,0.13794672,2947.4,2946.2,0.78266918]
[1769319194361,1.993,2947.3,2946.2,0.78266918]
[1769319194563,2.14161288,2947.3,2946.2,0.78266918]
[1769319196867,2.14161288,2947.3,2945.8,0.17297017]
[1769319197766,0.14861288,2947.2,2945.8,0.17297017]
[1769319210468,1.993,2947.1,2945.8,0.17297017]
[1769319210976,1.993,2947.0,2945.8,0.31675877]
[1769319215778,0.14861288,2947.2,2945.8,0.31675877]
[1769319216080,6.19257796,2947.1,2945.8,0.31675877]
[1769319216376,2.13566374,2947.1,2945.8,0.31675877]
[1769319222587,0.14266374,2947.1,2945.8,0.31675877]
[1769319222886,2.13566374,2947.1,2945.8,0.31675877]
[1769319230692,0.14266374,2947.1,2945.8,0.31675877]
[1769319230893,0.14266374,2947.6,2945.9,0.13928866]
[1769319231093,6.19405048,2947.5,2945.9,0.13928866]
[1769319231293,4.20105048,2947.4,2945.9,0.13928866]
[1769319231492,4.05838674,2947.3,2945.9,0.13928866]
[1769319231795,4.05838674,2947.2,2945.9,0.13928866]
[1769319231997,0.14266374,2947.4,2945.9,0.13928866]
[1769319232299,4.18427178,2947.3,2945.9,0.13928866]
[1769319232498,4.04160804,2947.2,2945.9,0.13928866]
[1769319232799,0.14266374,2947.3,2945.9,0.13928866]
[1769319232998,4.04134296,2947.2,2945.9,0.13928866]
[1769319233203,0.14266374,2947.3,2945.9,0.13928866]
[1769319233395,4.04117128,2947.2,2945.9,0.13928866]
[1769319233595,0.14266374,2947.3,2945.9,0.13928866]
[1769319233797,4.04115563,2947.2,2945.9,0.13928866]
[1769319234000,0.14266374,2947.3,2945.9,0.13928866]
[1769319234296,4.04115583,2947.2,2945.9,0.13928866]
[1769319234597,0.14266374,2947.3,2945.9,0.13928866]
[1769319234799,4.0410079,2947.2,2945.9,0.13928866]
[1769319234999,0.14266374,2947.3,2945.9,0.13928866]
[1769319235300,4.0410079,2947.2,2945.9,0.13928866]
[1769319235598,0.14266374,2947.3,2945.9,0.13928866]
[1769319235798,4.04088625,2947.2,2945.9,0.13928866]
[1769319235998,0.14266374,2947.3,2945.9,0.13928866]
[1769319236195,4.04088625,2947.2,2945.9,0.13928866]
[1769319236392,0.14266374,2947.3,2945.9,0.13928866]
[1769319236596,4.040784,2947.2,2945.9,0.13928866]
[1769319236796,0.14266374,2947.3,2945.9,0.13928866]
[1769319236996,4.18344774,2947.2,2945.9,0.13928866]
[1769319237205,0.14266374,2947.2,2945.9,0.13928866]
[1769319237412,0.14266374,2947.2,2945.8,0.17297017]
[1769319237599,4.04052194,2947.1,2945.8,0.17297017]
[1769319237804,0.14266374,2947.0,2945.8,0.17297017]
[1769319246014,0.14266374,2947.0,2945.8,0.00298017]
[1769319247311,0.14645109,2946.8,2945.8,0.00298017]
[1769319248613,0.14645109,2946.6,2945.2,0.17003]
[1769319248815,0.14645109,2946.5,2945.2,0.17003]
[1769319249017,1.993,2946.6,2945.2,0.17003]
[1769319249018,0.14645109,2946.4,2945.2,0.17003]
[1769319249615,0.14645109,2946.4,2945.2,0.17439901]
[1769319256627,0.14645109,2946.4,2945.2,0.00436901]
[1769319257926,0.14645109,2946.4,2944.7,3.398]
[1769319259029,0.14484509,2946.0,2944.8,0.78404836]
[1769319269344,0.78404836,2945.9,2944.8,0.78404836]
[1769319269546,0.92889345,2945.5,2944.7,0.00415268]
[1769319269740,0.93245698,2945.5,2944.7,0.00415268]
[1769319270450,0.93245698,2945.5,2944.2,0.78404836]
[1769319271544,0.93245698,2945.5,2944.2,0.78816819]
[1769319279858,0.92227299,2945.3,2944.2,0.00411983]
[1769319280358,0.13822463,2945.2,2944.2,0.00411983]
[1769319283557,0.78404836,2945.3,2944.2,0.00411983]
[1769319283760,1.994,2945.3,2944.4,0.78404836]
[1769319285060,0.00356353,2945.5,2944.4,0.78404836]
[1769319285260,0.00356353,2945.5,2944.8,0.78404836]
[1769319291564,0.00356353,2945.5,2944.6,0.78404836]
[1769319296364,6.386,2946.3,2945.1,0.14957779]
[1769319296566,6.03179646,2946.2,2945.2,0.78404836]
[1769319296762,4.03779646,2946.1,2945.2,0.78404836]
[1769319296965,4.03779646,2946.0,2945.2,0.78404836]
[1769319297364,0.00254614,2946.0,2945.2,0.78404836]
[1769319298261,0.00254614,2946.0,2945.0,0.78404836]
[1769319299472,4.03962291,2945.9,2945.0,0.78404836]
[1769319299671,0.00254614,2946.0,2945.0,0.78404836]
[1769319299864,4.03962238,2945.9,2945.0,0.78404836]
[1769319300062,0.00254614,2946.0,2945.0,0.78404836]
[1769319304678,0.00254614,2946.0,2944.8,0.78404836]
[1769319305277,1.99654614,2946.0,2944.8,0.78404836]
[1769319310080,2.7805945,2946.0,2944.8,0.78404836]
[1769319314285,4.03883647,2945.9,2944.8,0.78404836]
[1769319314477,1.99654614,2946.0,2944.8,0.78404836]
[1769319314678,4.03884388,2945.9,2944.8,0.78404836]
[1769319314877,1.99654614,2946.0,2944.8,0.78404836]
[1769319315077,4.03884394,2945.9,2944.8,0.78404836]
[1769319315273,1.99654614,2946.0,2944.8,0.78404836]
[1769319315477,4.03909132,2945.9,2944.8,0.78404836]
[1769319315683,1.99654614,2946.0,2945.0,0.78404836]
[1769319315883,4.03909196,2945.9,2945.0,0.78404836]
[1769319316085,1.99654614,2946.0,2945.0,0.78404836]
[1769319316276,4.03909112,2945.9,2945.0,0.78404836]
[1769319316478,0.00254614,2946.0,2945.0,0.78404836]
[1769319316684,6.03322998,2945.9,2945.0,0.78404836]
[1769319316882,1.994,2945.9,2945.0,0.78404836]
[1769319318285,0.00254614,2946.0,2945.0,0.78404836]
[1769319318491,1.994,2945.9,2945.2,0.78404836]
[1769319319284,0.00254614,2946.0,2945.2,0.78404836]
[1769319320986,0.00254614,2946.0,2945.0,0.15049664]
[1769319323390,0.00254614,2946.0,2944.7,0.17005]
[1769319323579,0.15307255,2946.0,2944.7,0.17005]
[1769319327790,0.15307255,2946.0,2944.7,0.32054664]
[1769319329395,0.00254614,2946.0,2944.8,0.15049664]
[1769319346411,0.00254614,2946.0,2944.9,0.14462271]
[1769319382934,0.00254614,2946.0,2945.3,0.78374985]
[1769319383132,0.00254614,2946.0,2945.3,0.92499682]
[1769319383726,0.00254614,2946.0,2945.3,0.14124697]
[1769319384229,0.00254614,2946.0,2945.1,0.78374985]
[1769319388331,0.00254614,2946.0,2945.1,0.92499682]
[1769319388934,0.00254614,2946.0,2945.2,0.14124697]
[1769319390833,2.77774985,2946.6,2945.2,0.14124697]
[1769319391035,4.02660321,2946.5,2945.4,0.14124697]
[1769319391332,4.02660321,2946.4,2945.4,0.14124697]
[1769319391534,4.02660321,2946.3,2945.4,0.14124697]
[1769319391734,4.02660321,2946.2,2945.4,0.14124697]
[1769319391931,0.00438634,2946.2,2945.4,0.14124697]
[1769319398938,0.00438634,2946.2,2945.3,0.78374985]
[1769319402845,0.00438634,2946.2,2945.1,0.92541023]
[1769319413151,0.00438634,2946.2,2945.2,0.14166038]
[1769319424258,0.00438634,2946.2,2945.6,0.92382387]
[1769319424564,1.994,2946.8,2945.6,0.92382387]
[1769319424761,4.0292595,2946.7,2945.6,0.92382387]
[1769319424971,4.0292595,2946.6,2945.6,0.92382387]
[1769319425168,4.0292595,2946.5,2945.6,0.92382387]
[1769319425353,0.00416596,2946.5,2945.7,0.14007402]
[1769319425857,8.38,2947.1,2946.1,0.14007402]
[1769319426158,4.02829519,2947.0,2946.1,0.14007402]
[1769319426353,4.02829519,2946.9,2946.1,0.14007402]
[1769319426562,8.38,2947.1,2946.1,0.14007402]
[1769319426760,4.02607087,2947.0,2946.1,0.14007402]
[1769319426960,4.02607087,2946.9,2946.1,0.14007402]
[1769319429270,4.02607087,2946.9,2945.8,0.78374985]
[1769319430270,1.99643036,2947.0,2945.8,0.78374985]
[1769319430763,1.993,2946.9,2945.8,0.78374985]
[1769319434072,1.993,2946.9,2945.8,0.93228716]
[1769319441174,0.00243036,2947.0,2945.8,0.93228716]
[1769319441476,1.99543036,2947.0,2945.8,0.93228716]
[1769319441668,0.00243036,2947.0,2946.0,0.93228716]
[1769319442981,0.00243036,2947.0,2946.0,0.14853731]
[1769319458990,0.00243036,2947.0,2946.1,0.1370988]
[1769319531953,2.94627491,2947.6,2946.4,0.14037158]
[1769319532156,0.78338491,2947.4,2946.4,0.14037158]
[1769319532353,4.02979212,2947.3,2946.4,0.14037158]
[1769319532860,4.03227582,2947.3,2946.4,0.14403339]
[1769319533053,4.02979212,2947.2,2946.4,0.14403339]
[1769319533252,0.0024837,2947.3,2946.4,0.14403339]
[1769319533448,4.02870398,2947.2,2946.4,0.14403339]
[1769319533653,0.0024837,2947.3,2946.4,0.14403339]
[1769319533953,4.02870398,2947.2,2946.4,0.14403339]
[1769319534154,0.0024837,2947.3,2946.4,0.14403339]
[1769319534361,4.02870453,2947.2,2946.4,0.14403339]
[1769319534554,0.0024837,2947.3,2946.4,0.14403339]
[1769319534761,4.02856764,2947.2,2946.4,0.14403339]
[1769319534961,0.0024837,2947.3,2946.4,0.00366181]
[1769319535160,4.02862533,2947.2,2946.4,0.00366181]
[1769319535350,0.0024837,2947.3,2946.4,0.00366181]
[1769319535550,4.02851262,2947.2,2946.4,0.00366181]
[1769319535755,0.78338491,2947.2,2946.4,0.00366181]
[1769319542667,0.78338491,2946.7,2945.2,9.85187896]
[1769319542864,0.78338491,2946.5,2945.3,0.14685394]
[1769319543254,0.93321816,2946.7,2945.3,0.14685394]
[1769319543659,0.93321816,2946.7,2945.3,0.15079728]
[1769319546369,0.78338491,2946.5,2945.3,0.15079728]
[1769319546868,0.78338491,2946.3,2945.3,0.15079728]
[1769319559480,0.78338491,2946.3,2945.3,0.00394334]
[1769319560885,0.78338491,2946.5,2945.3,0.00394334]
[1769319562886,0.14983325,2946.7,2945.3,0.00394334]
[1769319565386,0.15073907,2946.5,2945.3,0.00394334]
[1769319573196,4.03821778,2946.4,2945.3,0.00394334]
[1769319573387,0.15073907,2946.5,2945.3,0.00394334]
[1769319573588,4.03821778,2946.4,2945.3,0.00394334]
[1769319573892,0.15073907,2946.5,2945.3,0.00394334]
[1769319574189,4.0382175,2946.4,2945.3,0.00394334]
[1769319574382,0.15073907,2946.5,2945.3,0.00394334]
[1769319574578,4.03884577,2946.4,2945.3,0.00394334]
[1769319574787,0.15073907,2946.5,2945.3,0.00394334]
[1769319574995,4.03884577,2946.4,2945.3,0.00394334]
[1769319575198,0.15073907,2946.5,2945.3,0.00394334]
[1769319575399,4.03970229,2946.4,2945.3,0.00394334]
[1769319575698,0.15073907,2946.5,2945.3,0.00394334]
[1769319575890,4.03970201,2946.4,2945.3,0.00394334]
[1769319576090,0.15073907,2946.5,2945.3,0.00394334]
[1769319576294,4.04123532,2946.4,2945.3,0.00394334]
[1769319576494,0.15073907,2946.5,2945.3,0.00394334]
[1769319576694,4.04123025,2946.4,2945.3,0.00394334]
[1769319576899,0.14124066,2946.4,2945.3,0.00394334]
[1769319583214,4.04222337,2946.3,2945.3,0.00394334]
[1769319583503,0.14124066,2946.4,2945.3,0.00394334]
[1769319583698,4.18346413,2946.3,2945.3,0.00394334]
[1769319584005,0.14124066,2946.3,2945.3,0.00394334]
[1769319605026,0.14934219,2946.1,2944.8,0.17005]
[1769319605935,0.14934219,2946.1,2944.8,0.17265608]
[1769319606137,0.14934219,2945.9,2944.8,0.00260608]
[1769319610837,0.14934219,2945.6,2944.1,0.17009]
[1769319611940,0.14934219,2945.6,2944.1,0.17330832]
[1769319612745,0.14934219,2945.4,2944.1,0.00321832]
[1769319616750,0.14934219,2945.4,2943.5,0.17012]
[1769319617550,0.14934219,2945.4,2943.5,0.1744949]
[1769319618354,0.14934219,2945.4,2943.5,0.31799779]
[1769319622444,3.4,2945.6,2944.1,0.92731598]
[1769319622445,0.14910725,2945.6,2944.1,0.92731598]
[1769319622750,2.14310725,2945.6,2944.1,0.92731598]
[1769319624850,2.14310725,2945.6,2944.3,0.78428599]
[1769319625454,0.14910725,2945.6,2944.3,0.78428599]
[1769319625658,1.994,2945.5,2944.3,0.78428599]
[1769319626356,0.14910725,2945.6,2944.3,0.78428599]
[1769319626555,0.14910725,2945.6,2944.5,0.78428599]
[1769319626556,2.14310725,2945.6,2944.5,0.78428599]
[1769319630160,2.14310725,2945.6,2944.3,0.78428599]
[1769319635162,4.02987761,2945.5,2944.3,0.78428599]
[1769319635461,2.14310725,2945.6,2944.3,0.78428599]